[Event "Early-Titled-Tuesday-Blitz-June-18-2024"]
[Site "Chess.com"]
[Date "2024.06.18"]
[Round "4"]
[White "Andrei_Skvortsov"]
[Black "EdenDzung06"]
[Result "1-0"]
[WhiteElo "2789"]
[BlackElo "2433"]
[TimeControl "180+1"]
[EndTime "8:42:59 PDT"]
[Termination "Andrei_Skvortsov won by checkmate"]

1. e4 {[%clk 0:03:00.9]} 1... c6 {[%clk 0:02:59]} 2. e5 {[%clk 0:02:56.6]} 2...
d5 {[%clk 0:02:58]} 3. exd6 {[%clk 0:02:57.5]} 3... exd6 {[%clk 0:02:57.9]} 4.
d4 {[%clk 0:02:58.1]} 4... Nf6 {[%clk 0:02:57.2]} 5. Nf3 {[%clk 0:02:58.5]} 5...
Bg4 {[%clk 0:02:56.2]} 6. h3 {[%clk 0:02:58.3]} 6... Bh5 {[%clk 0:02:56.1]} 7.
Bd3 {[%clk 0:02:56.2]} 7... Be7 {[%clk 0:02:55.1]} 8. c4 {[%clk 0:02:54.4]} 8...
d5 {[%clk 0:02:55.2]} 9. c5 {[%clk 0:02:53.9]} 9... O-O {[%clk 0:02:54.2]} 10.
Be3 {[%clk 0:02:53.5]} 10... b6 {[%clk 0:02:54]} 11. cxb6 {[%clk 0:02:53.8]}
11... Qxb6 {[%clk 0:02:53.6]} 12. Qc2 {[%clk 0:02:43.6]} 12... Bg6 {[%clk
0:02:50.3]} 13. Bxg6 {[%clk 0:02:39.6]} 13... hxg6 {[%clk 0:02:49.9]} 14. Nc3
{[%clk 0:02:38.3]} 14... c5 {[%clk 0:02:46.7]} 15. Na4 {[%clk 0:02:31.6]} 15...
Qb4+ {[%clk 0:02:38.2]} 16. Bd2 {[%clk 0:02:29.9]} 16... Qb5 {[%clk 0:02:31.9]}
17. Nxc5 {[%clk 0:02:30.2]} 17... Re8 {[%clk 0:02:27.4]} 18. Be3 {[%clk
0:02:25]} 18... Nc6 {[%clk 0:02:21.8]} 19. Nd3 {[%clk 0:02:17.7]} 19... Nb4
{[%clk 0:02:15.1]} 20. Nxb4 {[%clk 0:02:15.7]} 20... Bxb4+ {[%clk 0:02:14.9]}
21. Kd1 {[%clk 0:02:13.6]} 21... Rac8 {[%clk 0:02:12.6]} 22. Qb3 {[%clk
0:02:12.4]} 22... Ne4 {[%clk 0:01:15.1]} 23. Ne5 {[%clk 0:02:12.4]} 23... f6
{[%clk 0:01:02.4]} 24. a4 {[%clk 0:01:55.8]} 24... Qa5 {[%clk 0:00:48.9]} 25.
Nd3 {[%clk 0:01:54.5]} 25... Bd6 {[%clk 0:00:45.5]} 26. Rc1 {[%clk 0:01:36.4]}
26... Rb8 {[%clk 0:00:41.8]} 27. Qc2 {[%clk 0:01:35.6]} 27... Kh7 {[%clk
0:00:30.9]} 28. Ke2 {[%clk 0:01:29.1]} 28... f5 {[%clk 0:00:27.8]} 29. Kf3
{[%clk 0:01:23.4]} 29... Nf6 {[%clk 0:00:19.9]} 30. g3 {[%clk 0:01:20.7]} 30...
Re4 {[%clk 0:00:15.8]} 31. Kg2 {[%clk 0:01:13]} 31... Rbe8 {[%clk 0:00:14.8]}
32. Rhe1 {[%clk 0:01:07.7]} 32... Nh5 {[%clk 0:00:14.4]} 33. Bd2 {[%clk
0:01:02.4]} 33... Qd8 {[%clk 0:00:13.1]} 34. Nc5 {[%clk 0:00:57.2]} 34... Bxc5
{[%clk 0:00:12.7]} 35. dxc5 {[%clk 0:00:55.9]} 35... d4 {[%clk 0:00:09]} 36. Qd3
{[%clk 0:00:53.3]} 36... Qd5 {[%clk 0:00:04.7]} 37. f3 {[%clk 0:00:33.4]} 37...
Rxe1 {[%clk 0:00:04.1]} 38. Rxe1 {[%clk 0:00:34.3]} 38... Rxe1 {[%clk
0:00:04.1]} 39. Bxe1 {[%clk 0:00:35.2]} 39... Qxc5 {[%clk 0:00:04.8]} 40. Bf2
{[%clk 0:00:35.1]} 40... Nf6 {[%clk 0:00:04.7]} 41. Qxd4 {[%clk 0:00:35]} 41...
Qc2 {[%clk 0:00:04.7]} 42. b4 {[%clk 0:00:34.2]} 42... f4 {[%clk 0:00:05.2]} 43.
Qxf4 {[%clk 0:00:30]} 43... Nh5 {[%clk 0:00:05]} 44. Qd4 {[%clk 0:00:24.7]}
44... Qxa4 {[%clk 0:00:05.3]} 45. g4 {[%clk 0:00:24.9]} 45... Nf6 {[%clk
0:00:05]} 46. h4 {[%clk 0:00:25.6]} 46... Kh6 {[%clk 0:00:04.6]} 47. g5+ {[%clk
0:00:19.9]} 47... Kh5 {[%clk 0:00:04.6]} 48. gxf6 {[%clk 0:00:14.2]} 48... gxf6
{[%clk 0:00:05.5]} 49. Qg4+ {[%clk 0:00:14.6]} 49... Kh6 {[%clk 0:00:05.4]} 50.
Qf4+ {[%clk 0:00:14.4]} 50... Kg7 {[%clk 0:00:05.1]} 51. Qc7+ {[%clk 0:00:15.1]}
51... Kh6 {[%clk 0:00:05.6]} 52. Qxa7 {[%clk 0:00:15.5]} 52... Qxb4 {[%clk
0:00:05.4]} 53. Qd4 {[%clk 0:00:16.2]} 53... Qxd4 {[%clk 0:00:05.2]} 54. Bxd4
{[%clk 0:00:16.1]} 54... g5 {[%clk 0:00:05.3]} 55. hxg5+ {[%clk 0:00:16.7]}
55... Kxg5 {[%clk 0:00:05.3]} 56. Kg3 {[%clk 0:00:17.4]} 56... f5 {[%clk
0:00:06]} 57. f4+ {[%clk 0:00:18]} 57... Kg6 {[%clk 0:00:06.3]} 58. Kh3 {[%clk
0:00:18.5]} 58... Kf7 {[%clk 0:00:07.2]} 59. Kh4 {[%clk 0:00:19]} 59... Kg6
{[%clk 0:00:08.1]} 60. Be3 {[%clk 0:00:18.8]} 60... Kh6 {[%clk 0:00:08.6]} 61.
Bc5 {[%clk 0:00:19.2]} 61... Kg6 {[%clk 0:00:09.2]} 62. Bf8 {[%clk 0:00:19.8]}
62... Kf7 {[%clk 0:00:09.7]} 63. Bb4 {[%clk 0:00:20.3]} 63... Kg6 {[%clk
0:00:10.3]} 64. Kg3 {[%clk 0:00:20.3]} 64... Kh5 {[%clk 0:00:10.6]} 65. Kf3
{[%clk 0:00:21.2]} 65... Kh4 {[%clk 0:00:10.8]} 66. Ke3 {[%clk 0:00:21.6]} 66...
Kg3 {[%clk 0:00:10.7]} 67. Bd6 {[%clk 0:00:22.5]} 67... Kg4 {[%clk 0:00:11]} 68.
Be5 {[%clk 0:00:23.4]} 68... Kh5 {[%clk 0:00:11.3]} 69. Kd4 {[%clk 0:00:24.3]}
69... Kg6 {[%clk 0:00:12.2]} 70. Kd5 {[%clk 0:00:25.2]} 70... Kf7 {[%clk
0:00:13.1]} 71. Kd6 {[%clk 0:00:25.6]} 71... Kf8 {[%clk 0:00:13.3]} 72. Ke6
{[%clk 0:00:26.5]} 72... Ke8 {[%clk 0:00:13.3]} 73. Kxf5 {[%clk 0:00:27.1]}
73... Kf8 {[%clk 0:00:13.6]} 74. Ke4 {[%clk 0:00:28]} 74... Kf7 {[%clk
0:00:14.5]} 75. Bd4 {[%clk 0:00:28.9]} 75... Ke6 {[%clk 0:00:15.4]} 76. Be3
{[%clk 0:00:29.8]} 76... Kd6 {[%clk 0:00:16.3]} 77. f5 {[%clk 0:00:30.4]} 77...
Ke7 {[%clk 0:00:16.7]} 78. Ke5 {[%clk 0:00:31.3]} 78... Kf7 {[%clk 0:00:17.6]}
79. f6 {[%clk 0:00:31.9]} 79... Kg6 {[%clk 0:00:18]} 80. Ke6 {[%clk 0:00:32.3]}
80... Kh7 {[%clk 0:00:18.1]} 81. f7 {[%clk 0:00:32.5]} 81... Kg7 {[%clk
0:00:19]} 82. Ke7 {[%clk 0:00:32.5]} 82... Kh7 {[%clk 0:00:19.5]} 83. Bc1 {[%clk
0:00:33]} 83... Kh8 {[%clk 0:00:19.7]} 84. Ba3 {[%clk 0:00:33.9]} 84... Kh7
{[%clk 0:00:19.8]} 85. f8=Q {[%clk 0:00:33.2]} 85... Kg6 {[%clk 0:00:20.7]} 86.
Qf6+ {[%clk 0:00:33.7]} 86... Kh5 {[%clk 0:00:21.6]} 87. Qg7 {[%clk 0:00:33.8]}
87... Kh4 {[%clk 0:00:21.9]} 88. Kf6 {[%clk 0:00:34.7]} 88... Kh3 {[%clk
0:00:22.7]} 89. Kf5 {[%clk 0:00:35.5]} 89... Kh2 {[%clk 0:00:23.6]} 90. Kf4
{[%clk 0:00:36.1]} 90... Kh3 {[%clk 0:00:24.5]} 91. Qg3# {[%clk 0:00:35.3]} 1-0

[Event "Early-Titled-Tuesday-Blitz-June-18-2024"]
[Site "Chess.com"]
[Date "2024.06.18"]
[Round "4"]
[White "DanyKopy"]
[Black "DuleMudule"]
[Result "1/2-1/2"]
[WhiteElo "2566"]
[BlackElo "2764"]
[TimeControl "180+1"]
[EndTime "8:43:17 PDT"]
[Termination "Game drawn by stalemate"]

1. Nf3 {[%clk 0:03:00.9]} 1... d5 {[%clk 0:02:59.5]} 2. g3 {[%clk 0:03:00.2]}
2... Nc6 {[%clk 0:02:58.5]} 3. d4 {[%clk 0:02:59.5]} 3... Bf5 {[%clk 0:02:57.4]}
4. Bg2 {[%clk 0:02:58.1]} 4... Nb4 {[%clk 0:02:57.5]} 5. Na3 {[%clk 0:02:57.9]}
5... c6 {[%clk 0:02:58]} 6. O-O {[%clk 0:02:57.4]} 6... h6 {[%clk 0:02:58]} 7.
c3 {[%clk 0:02:57.2]} 7... Na6 {[%clk 0:02:57.9]} 8. c4 {[%clk 0:02:38.9]} 8...
e6 {[%clk 0:02:57.1]} 9. Qb3 {[%clk 0:02:36.6]} 9... Nb4 {[%clk 0:02:52.1]} 10.
Bd2 {[%clk 0:02:29]} 10... a5 {[%clk 0:02:52]} 11. Bxb4 {[%clk 0:02:23.4]} 11...
axb4 {[%clk 0:02:48.7]} 12. Nc2 {[%clk 0:02:22]} 12... dxc4 {[%clk 0:02:48.2]}
13. Qxc4 {[%clk 0:02:19.2]} 13... Qd5 {[%clk 0:02:48.3]} 14. Ne3 {[%clk
0:02:13.4]} 14... Qxc4 {[%clk 0:02:48]} 15. Nxc4 {[%clk 0:02:14.3]} 15... Nf6
{[%clk 0:02:47.7]} 16. a3 {[%clk 0:02:07.2]} 16... bxa3 {[%clk 0:02:41.4]} 17.
bxa3 {[%clk 0:02:02.1]} 17... Be7 {[%clk 0:02:36.9]} 18. a4 {[%clk 0:02:02]}
18... O-O {[%clk 0:02:32]} 19. Nfe5 {[%clk 0:02:01.9]} 19... Rfd8 {[%clk
0:02:29.6]} 20. e3 {[%clk 0:02:01.5]} 20... Ne8 {[%clk 0:02:16.9]} 21. Rfc1
{[%clk 0:01:46.6]} 21... f6 {[%clk 0:02:07.8]} 22. Nf3 {[%clk 0:01:35.3]} 22...
Nd6 {[%clk 0:02:05.8]} 23. Nfd2 {[%clk 0:01:35.2]} 23... Nxc4 {[%clk 0:02:02.3]}
24. Nxc4 {[%clk 0:01:36.1]} 24... Kf7 {[%clk 0:01:58.8]} 25. a5 {[%clk
0:01:35.6]} 25... Ra7 {[%clk 0:01:46]} 26. a6 {[%clk 0:01:30.6]} 26... Rxa6
{[%clk 0:01:43.2]} 27. Rxa6 {[%clk 0:01:29.5]} 27... bxa6 {[%clk 0:01:44.1]} 28.
Na5 {[%clk 0:01:29.6]} 28... Rb8 {[%clk 0:01:39.4]} 29. Nxc6 {[%clk 0:01:26.8]}
29... Rb1 {[%clk 0:01:38.7]} 30. Rxb1 {[%clk 0:01:20.4]} 30... Bxb1 {[%clk
0:01:39.6]} 31. Bf1 {[%clk 0:01:19.9]} 31... Be4 {[%clk 0:01:36.7]} 32. Nxe7
{[%clk 0:01:18.5]} 32... Kxe7 {[%clk 0:01:37.6]} 33. Bxa6 {[%clk 0:01:18.5]}
33... e5 {[%clk 0:01:35.4]} 34. Bc4 {[%clk 0:01:14.1]} 34... exd4 {[%clk
0:01:34.4]} 35. exd4 {[%clk 0:01:14]} 35... Kd6 {[%clk 0:01:35]} 36. Kf1 {[%clk
0:01:10.4]} 36... g5 {[%clk 0:01:32.9]} 37. Ke2 {[%clk 0:01:10.4]} 37... Bc6
{[%clk 0:01:32.4]} 38. Ke3 {[%clk 0:01:10.4]} 38... Bb7 {[%clk 0:01:32.4]} 39.
Bd3 {[%clk 0:01:07.6]} 39... Bd5 {[%clk 0:01:31.7]} 40. Be4 {[%clk 0:01:07.6]}
40... Bc4 {[%clk 0:01:31.9]} 41. Kf3 {[%clk 0:01:06.7]} 41... Be6 {[%clk
0:01:31.7]} 42. Ke3 {[%clk 0:01:00.9]} 42... Bd7 {[%clk 0:01:29.6]} 43. Bf3
{[%clk 0:00:47.9]} 43... Bf5 {[%clk 0:01:25]} 44. Be2 {[%clk 0:00:45.6]} 44...
Be6 {[%clk 0:01:24.4]} 45. Bd3 {[%clk 0:00:45.5]} 45... Bd5 {[%clk 0:01:24.5]}
46. f4 {[%clk 0:00:40.7]} 46... Bc6 {[%clk 0:01:19.8]} 47. Be4 {[%clk
0:00:37.1]} 47... Bd7 {[%clk 0:01:19]} 48. Kf3 {[%clk 0:00:36.9]} 48... Bc8
{[%clk 0:01:16.5]} 49. h4 {[%clk 0:00:31.3]} 49... gxh4 {[%clk 0:01:16]} 50.
gxh4 {[%clk 0:00:32.2]} 50... Bd7 {[%clk 0:01:06.6]} 51. Kg3 {[%clk 0:00:31.6]}
51... Bc8 {[%clk 0:01:02.9]} 52. Kf3 {[%clk 0:00:23.8]} 52... Bd7 {[%clk
0:01:02.8]} 53. Ke3 {[%clk 0:00:24.1]} 53... Be6 {[%clk 0:01:01.2]} 54. Bc2
{[%clk 0:00:24.1]} 54... Bd5 {[%clk 0:01:00.5]} 55. Bg6 {[%clk 0:00:22.2]} 55...
Be6 {[%clk 0:00:54]} 56. Bb1 {[%clk 0:00:21.8]} 56... Bd5 {[%clk 0:00:53.8]} 57.
Kf2 {[%clk 0:00:21.6]} 57... Be6 {[%clk 0:00:53.1]} 58. Kg3 {[%clk 0:00:20.8]}
58... Bd7 {[%clk 0:00:53.1]} 59. Ba2 {[%clk 0:00:18.3]} 59... Bf5 {[%clk
0:00:52.1]} 60. Bf7 {[%clk 0:00:18]} 60... Bd7 {[%clk 0:00:49.8]} 61. Kf3 {[%clk
0:00:18.2]} 61... Bf5 {[%clk 0:00:48.6]} 62. Ke3 {[%clk 0:00:16.6]} 62... Ke7
{[%clk 0:00:47.8]} 63. Bd5 {[%clk 0:00:15.1]} 63... Kd6 {[%clk 0:00:48.4]} 64.
Be4 {[%clk 0:00:15.4]} 64... Bd7 {[%clk 0:00:48.3]} 65. Bg6 {[%clk 0:00:12.8]}
65... Bc6 {[%clk 0:00:46.7]} 66. Bf7 {[%clk 0:00:10.6]} 66... Bb7 {[%clk
0:00:45.7]} 67. Kf2 {[%clk 0:00:08.6]} 67... Be4 {[%clk 0:00:44.8]} 68. Kg3
{[%clk 0:00:08.8]} 68... Bf5 {[%clk 0:00:44.9]} 69. Bb3 {[%clk 0:00:07.1]} 69...
Be4 {[%clk 0:00:44.1]} 70. Kg4 {[%clk 0:00:06.6]} 70... Bg6 {[%clk 0:00:44.1]}
71. Bg8 {[%clk 0:00:04.5]} 71... Ke7 {[%clk 0:00:40.1]} 72. f5 {[%clk 0:00:04]}
72... Be8 {[%clk 0:00:40.1]} 73. Bh7 {[%clk 0:00:04.3]} 73... Kf8 {[%clk
0:00:29.9]} 74. Bg6 {[%clk 0:00:05.2]} 74... Bc6 {[%clk 0:00:29.6]} 75. Kf4
{[%clk 0:00:05.2]} 75... Ke7 {[%clk 0:00:28.8]} 76. Kg4 {[%clk 0:00:05.1]} 76...
Kf8 {[%clk 0:00:28]} 77. Bh7 {[%clk 0:00:05.2]} 77... Be8 {[%clk 0:00:27.1]} 78.
Kf4 {[%clk 0:00:04.6]} 78... Ke7 {[%clk 0:00:26.5]} 79. Ke4 {[%clk 0:00:04.1]}
79... Bc6+ {[%clk 0:00:24.2]} 80. d5 {[%clk 0:00:04.1]} 80... Bb7 {[%clk
0:00:24.3]} 81. Bg8 {[%clk 0:00:03.8]} 81... Kd6 {[%clk 0:00:24.7]} 82. Kf4
{[%clk 0:00:03.3]} 82... h5 {[%clk 0:00:22.4]} 83. Bf7 {[%clk 0:00:02.7]} 83...
Bxd5 {[%clk 0:00:22.7]} 84. Bxh5 {[%clk 0:00:03]} 84... Ke7 {[%clk 0:00:22.8]}
85. Bg6 {[%clk 0:00:02]} 85... Kf8 {[%clk 0:00:23]} 86. Ke3 {[%clk 0:00:01.4]}
86... Kg7 {[%clk 0:00:22.9]} 87. Kd4 {[%clk 0:00:01.8]} 87... Bf3 {[%clk
0:00:22.9]} 88. Kc5 {[%clk 0:00:01.9]} 88... Bg4 {[%clk 0:00:22.9]} 89. Kd6
{[%clk 0:00:02.1]} 89... Bh3 {[%clk 0:00:23.1]} 90. Ke7 {[%clk 0:00:02.6]} 90...
Bg4 {[%clk 0:00:22.9]} 91. h5 {[%clk 0:00:02.7]} 91... Bxf5 {[%clk 0:00:22.6]}
92. Bxf5 {[%clk 0:00:02.3]} 92... Kh8 {[%clk 0:00:23.5]} 93. Kxf6 {[%clk
0:00:01.8]} 93... Kg8 {[%clk 0:00:23.2]} 94. h6 {[%clk 0:00:02.4]} 94... Kh8
{[%clk 0:00:24.1]} 95. h7 {[%clk 0:00:03]} 1/2-1/2

[Event "Early-Titled-Tuesday-Blitz-June-18-2024"]
[Site "Chess.com"]
[Date "2024.06.18"]
[Round "4"]
[White "Mikayel99"]
[Black "KhBegmuratov"]
[Result "0-1"]
[WhiteElo "2619"]
[BlackElo "2927"]
[TimeControl "180+1"]
[EndTime "8:43:21 PDT"]
[Termination "KhBegmuratov won on time"]

1. e4 {[%clk 0:03:00]} 1... c5 {[%clk 0:02:58.7]} 2. d4 {[%clk 0:03:00.3]} 2...
cxd4 {[%clk 0:02:58.8]} 3. Nf3 {[%clk 0:03:00.6]} 3... Nc6 {[%clk 0:02:58.2]} 4.
Nxd4 {[%clk 0:03:00.9]} 4... e6 {[%clk 0:02:58.7]} 5. Nc3 {[%clk 0:03:00.3]}
5... Qc7 {[%clk 0:02:58.9]} 6. g3 {[%clk 0:02:55.8]} 6... a6 {[%clk 0:02:58.1]}
7. Bg2 {[%clk 0:02:55.8]} 7... Bc5 {[%clk 0:02:57.7]} 8. Nb3 {[%clk 0:02:54.8]}
8... Ba7 {[%clk 0:02:57.5]} 9. O-O {[%clk 0:02:55.1]} 9... Nf6 {[%clk 0:02:57]}
10. Bf4 {[%clk 0:02:53.5]} 10... Ne5 {[%clk 0:02:56.9]} 11. Nd4 {[%clk
0:02:45.8]} 11... d6 {[%clk 0:02:48.2]} 12. a4 {[%clk 0:02:20.1]} 12... O-O
{[%clk 0:02:38.9]} 13. Nce2 {[%clk 0:02:03.7]} 13... Bd7 {[%clk 0:02:28.4]} 14.
c3 {[%clk 0:02:00.8]} 14... b5 {[%clk 0:02:22.8]} 15. axb5 {[%clk 0:01:59.2]}
15... axb5 {[%clk 0:02:23.7]} 16. Qb3 {[%clk 0:01:53.5]} 16... Nc4 {[%clk
0:02:08.7]} 17. Rfd1 {[%clk 0:01:43.5]} 17... e5 {[%clk 0:02:06.9]} 18. Bg5
{[%clk 0:01:31.8]} 18... exd4 {[%clk 0:02:03.1]} 19. Bxf6 {[%clk 0:01:31.4]}
19... gxf6 {[%clk 0:02:04]} 20. cxd4 {[%clk 0:01:30.4]} 20... f5 {[%clk
0:01:51.3]} 21. e5 {[%clk 0:01:24.5]} 21... Rae8 {[%clk 0:01:47]} 22. exd6
{[%clk 0:01:20.1]} 22... Nxd6 {[%clk 0:01:45.9]} 23. Rdc1 {[%clk 0:01:19]} 23...
Nc4 {[%clk 0:01:43.1]} 24. Nc3 {[%clk 0:01:12]} 24... Bxd4 {[%clk 0:01:31.7]}
25. Nxb5 {[%clk 0:01:09]} 25... Bxf2+ {[%clk 0:01:32]} 26. Kh1 {[%clk 0:01:04]}
26... Qb6 {[%clk 0:01:26.1]} 27. Qxc4 {[%clk 0:00:56.1]} 27... Bxb5 {[%clk
0:01:23]} 28. Qh4 {[%clk 0:00:50.1]} 28... Be3 {[%clk 0:01:12.4]} 29. Rc3 {[%clk
0:00:44.4]} 29... Qg6 {[%clk 0:01:07.9]} 30. Qb4 {[%clk 0:00:32.4]} 30... Be2
{[%clk 0:01:03.8]} 31. Rc6 {[%clk 0:00:24.3]} 31... Qg4 {[%clk 0:00:47.7]} 32.
Qxg4+ {[%clk 0:00:16.3]} 32... fxg4 {[%clk 0:00:48.6]} 33. Rf6 {[%clk
0:00:12.1]} 33... Bd4 {[%clk 0:00:47.9]} 34. Rf4 {[%clk 0:00:11.8]} 34... Bxb2
{[%clk 0:00:48.6]} 35. Re1 {[%clk 0:00:11.1]} 35... Bc3 {[%clk 0:00:43.9]} 36.
Rb1 {[%clk 0:00:10.3]} 36... Bd3 {[%clk 0:00:43]} 37. Rd1 {[%clk 0:00:07]} 37...
Be2 {[%clk 0:00:43.2]} 38. Rb1 {[%clk 0:00:05.4]} 38... Be5 {[%clk 0:00:43.3]}
39. Rfb4 {[%clk 0:00:03.5]} 39... Rb8 {[%clk 0:00:37.9]} 40. Rxb8 {[%clk
0:00:02.2]} 40... Rxb8 {[%clk 0:00:38.8]} 41. Re1 {[%clk 0:00:02.7]} 41... Bc3
{[%clk 0:00:36.8]} 42. Rxe2 {[%clk 0:00:02.4]} 42... Rb1+ {[%clk 0:00:37.5]} 43.
Bf1 {[%clk 0:00:03]} 43... Rxf1+ {[%clk 0:00:38]} 44. Kg2 {[%clk 0:00:03.8]}
44... Re1 {[%clk 0:00:38.5]} 45. Rc2 {[%clk 0:00:04.1]} 45... Re3 {[%clk
0:00:38.5]} 46. Ra2 {[%clk 0:00:04.2]} 46... Kg7 {[%clk 0:00:38.4]} 47. Ra4
{[%clk 0:00:04.4]} 47... h5 {[%clk 0:00:39]} 48. h3 {[%clk 0:00:04.7]} 48...
Re2+ {[%clk 0:00:39.2]} 49. Kf1 {[%clk 0:00:05.3]} 49... Re1+ {[%clk 0:00:34.9]}
50. Kf2 {[%clk 0:00:05.5]} 50... gxh3 {[%clk 0:00:34.5]} 51. Rh4 {[%clk
0:00:05]} 51... Re5 {[%clk 0:00:34.3]} 52. Rxh3 {[%clk 0:00:04.8]} 52... Bd4+
{[%clk 0:00:35.1]} 53. Kf3 {[%clk 0:00:05.3]} 53... Rg5 {[%clk 0:00:35.5]} 54.
Rh1 {[%clk 0:00:05.5]} 54... f5 {[%clk 0:00:34.3]} 55. Rb1 {[%clk 0:00:05.6]}
55... Kg6 {[%clk 0:00:33.1]} 56. Rb6+ {[%clk 0:00:06.1]} 56... Bf6 {[%clk
0:00:33.8]} 57. Kf4 {[%clk 0:00:06.5]} 57... Rg4+ {[%clk 0:00:34.2]} 58. Kf3
{[%clk 0:00:07.1]} 58... Re4 {[%clk 0:00:34.8]} 59. Ra6 {[%clk 0:00:07.2]} 59...
Kg5 {[%clk 0:00:35]} 60. Ra8 {[%clk 0:00:07.4]} 60... Bd4 {[%clk 0:00:31.9]} 61.
Rg8+ {[%clk 0:00:07.7]} 61... Kf6 {[%clk 0:00:32.7]} 62. Rf8+ {[%clk 0:00:08.1]}
62... Ke6 {[%clk 0:00:33.5]} 63. Re8+ {[%clk 0:00:08.6]} 63... Kd5 {[%clk
0:00:34.3]} 64. Rd8+ {[%clk 0:00:08.8]} 64... Kc4 {[%clk 0:00:35]} 65. Rc8+
{[%clk 0:00:09.3]} 65... Kd3 {[%clk 0:00:35.2]} 66. Ra8 {[%clk 0:00:09.9]} 66...
Kc4 {[%clk 0:00:28.5]} 67. Ra4+ {[%clk 0:00:09.8]} 67... Kd5 {[%clk 0:00:27.8]}
68. Ra5+ {[%clk 0:00:10.4]} 68... Bc5 {[%clk 0:00:28.5]} 69. Ra8 {[%clk
0:00:10.8]} 69... Re7 {[%clk 0:00:24.6]} 70. Rh8 {[%clk 0:00:10]} 70... Ra7
{[%clk 0:00:12.5]} 71. Rxh5 {[%clk 0:00:09.7]} 71... Ke6 {[%clk 0:00:13.3]} 72.
g4 {[%clk 0:00:08.4]} 72... Ra3+ {[%clk 0:00:13.2]} 73. Kg2 {[%clk 0:00:08.9]}
73... Ra2+ {[%clk 0:00:10]} 74. Kf1 {[%clk 0:00:09.3]} 74... Ra1+ {[%clk
0:00:06.3]} 75. Ke2 {[%clk 0:00:09.3]} 75... Ra2+ {[%clk 0:00:07]} 76. Kf1
{[%clk 0:00:09.6]} 76... Ra4 {[%clk 0:00:05.9]} 77. gxf5+ {[%clk 0:00:09.4]}
77... Kf6 {[%clk 0:00:05.3]} 78. Rh6+ {[%clk 0:00:10]} 78... Kg5 {[%clk
0:00:06]} 79. Rc6 {[%clk 0:00:09.6]} 79... Bd4 {[%clk 0:00:05.3]} 80. Rd6 {[%clk
0:00:09.5]} 80... Kxf5 {[%clk 0:00:05.4]} 81. Rd5+ {[%clk 0:00:09.3]} 81... Ke4
{[%clk 0:00:05.9]} 82. Rd8 {[%clk 0:00:09.7]} 82... Be3 {[%clk 0:00:05]} 83.
Re8+ {[%clk 0:00:09.5]} 83... Kf3 {[%clk 0:00:05.6]} 84. Rf8+ {[%clk 0:00:09.9]}
84... Bf4 {[%clk 0:00:06.2]} 85. Re8 {[%clk 0:00:09.5]} 85... Ra2 {[%clk
0:00:06.9]} 86. Re7 {[%clk 0:00:08.6]} 86... Rh2 {[%clk 0:00:06.9]} 87. Rg7
{[%clk 0:00:07.9]} 87... Rh5 {[%clk 0:00:04.9]} 88. Ke1 {[%clk 0:00:07.5]} 88...
Re5+ {[%clk 0:00:03.7]} 89. Kd1 {[%clk 0:00:07.6]} 89... Rc5 {[%clk 0:00:04.4]}
0-1